fUSD/lending_fUSD_20241107
["ID","MTS","AMOUNT","RATE_DAILY","PERIOD"]
[341519764,1730949053936,-1051.368008,0.00031997,7]
[341519765,1730949053947,-224.449515,0.00031997,7]
[341519766,1730949053956,-224.449515,0.00031997,7]
[341519767,1730949053966,-209.582217,0.00031997,7]
[341519768,1730949053976,-209.582217,0.00031997,7]
[341519769,1730949053986,-154.196968,0.00031997,7]
[341519770,1730949053996,-151.0,0.00031997,7]
[341519771,1730949054006,-151.0,0.00031997,7]
[341519772,1730949054016,-151.0,0.00031997,7]
[341519773,1730949054026,-215.832556,0.00031997,7]
[341519774,1730949054037,-151.0,0.00031997,7]
[341519775,1730949054047,-151.0,0.00031997,7]
[341519776,1730949054059,-151.0,0.00031997,7]
[341519777,1730949054069,-151.0,0.00031997,7]
[341519778,1730949054079,-151.0,0.00031997,7]
[341519779,1730949054091,-152.637879,0.00031997,7]
[341519780,1730949054101,-644.437825,0.00031997,7]
[341519781,1730949054111,-151.0,0.00031997,7]
[341519782,1730949054122,-644.437825,0.00031997,7]
[341519783,1730949054134,-173.745683,0.00031997,7]
[341519784,1730949054144,-151.0,0.00031997,7]
[341519785,1730949054154,-173.745683,0.00031997,7]
[341519786,1730949054165,-151.0,0.00031997,7]
[341519787,1730949054175,-163.564628,0.00031997,7]
[341519788,1730949054185,-294.501227,0.00031997,7]
[341519789,1730949054196,-151.0,0.00031997,7]
[341519790,1730949054207,-294.501227,0.00031997,7]
[341519791,1730949054218,-165.701829,0.00031997,7]
[341519792,1730949054229,-165.701829,0.00031997,7]
[341519793,1730949054240,-2078.539581,0.00031997,7]
[341519794,1730949054250,-2078.539581,0.00031997,7]
[341519795,1730949054261,-151.0,0.00031997,7]
[341519796,1730949054272,-151.0,0.00031997,7]
[341519797,1730949054282,-456.608977,0.00031997,7]
[341519798,1730949054293,-892.472602,0.00031997,7]
[341519799,1730949054305,-456.608977,0.00031997,7]
[341519800,1730949054320,-892.472602,0.00031997,7]
[341519801,1730949054330,-186.572963,0.00031997,7]
[341519802,1730949054341,-186.572963,0.00031997,7]
[341519803,1730949054351,-151.0,0.00031997,7]
[341519804,1730949054361,-253.878033,0.00031997,7]
[341519805,1730949054371,-253.878033,0.00031997,7]
[341519806,1730949054381,-150.01,0.00031998,2]
[341519807,1730949054391,-5900.89216189,0.00031998,2]
[341519808,1730949054401,-151.0,0.00031999,7]
[341519809,1730949054412,-151.0,0.00031999,7]
[341519810,1730949054422,-151.0,0.00031999,7]
[341519811,1730949054432,-151.0,0.00031999,7]
[341519812,1730949054443,-2038.746371,0.00031999,7]
[341519813,1730949054452,-2038.746371,0.00031999,7]
[341519814,1730949054462,-2038.746371,0.00031999,7]
[341519815,1730949054472,-2038.746371,0.00031999,7]
[341519816,1730949054482,-151.0,0.00031999,7]
[341519817,1730949054492,-151.0,0.00031999,7]
[341519818,1730949054503,-150.0,0.00031999,2]
[341519819,1730949054513,-3038734.97511927,0.00032,2]
[341519820,1730949054527,-333.94691558,0.00032,2]
[341519821,1730949054540,-682.82,0.00032,2]
[341519822,1730949054594,-641.61544197,0.00032,2]
[341519823,1730949054606,-13737.02976123,0.00032,2]
[341519824,1730949054620,-38716.63337247,0.00032,2]
[341519827,1730949078378,169.02,0.00015342,2]
[341519829,1730949082419,178.323,0.00021615,2]
[341519832,1730949121318,300.0,0.00019725,2]
[341519834,1730949137137,2430.0,0.000264,2]
[341519835,1730949137988,2187.0,0.000264,2]
[341519838,1730949177886,175.0,8e-05,2]
[341519841,1730949219177,-283.0365,0.0003,2]
[341519842,1730949219203,-424.55475,0.0003,2]
[341519843,1730949219226,-217.28775,0.0003,2]
[341519844,1730949225440,-1470.89763101,0.00030102,2]
[341519845,1730949225464,-936.0,0.0003012,2]
[341519846,1730949225490,-960.34,0.00030202,2]
[341519847,1730949225518,-1470.89763099,0.00030588,2]
[341519848,1730949225542,-960.34,0.00030688,2]
[341519849,1730949225570,-160.53,0.00030774,2]
[341519851,1730949225598,-160.53,0.00030798,2]
[341519852,1730949225624,-160.53,0.00030822,2]
[341519853,1730949225653,-160.53,0.00030845,2]
[341519854,1730949225679,-160.53,0.00030869,2]
[341519855,1730949225709,-160.53,0.00030893,2]
[341519856,1730949225739,-160.53,0.00030916,2]
[341519857,1730949225767,-160.53,0.0003094,2]
[341519858,1730949225797,-16768.34,0.0003095,2]
[341519859,1730949225824,-160.53,0.00030964,2]
[341519860,1730949225852,-250.0,0.00030968,2]
[341519861,1730949225877,-160.53,0.00030987,2]
[341519862,1730949228787,-500.0,0.0003101,30]
[341519863,1730949228813,-513.47631282,0.0003101,30]
[341519864,1730949228839,-160.53,0.00031011,2]
[341519865,1730949228865,-160.53,0.00031035,2]
[341519866,1730949228892,-160.53,0.00031058,2]
[341519867,1730949228919,-160.53,0.00031082,2]
[341519868,1730949228947,-424.55475,0.00031113,2]
[341519869,1730949228974,-198.45,0.00031158,30]
[341519870,1730949229001,-960.34,0.00031173,2]
[341519871,1730949229027,-12222.3976,0.000312,2]
[341519872,1730949229053,-6242.11092029,0.000312,15]
[341519873,1730949229080,-487.78,0.0003129,10]
[341519874,1730949229111,-500.0,0.00031299,2]
[341519875,1730949229139,-500.0,0.00031299,2]
[341519876,1730949229165,-296.20005065,0.00031299,2]
[341519877,1730949229191,-500.0,0.00031299,2]
[341519878,1730949229217,-500.92936758,0.00031299,2]
[341519879,1730949229241,-2500.0,0.000313,2]
[341519880,1730949229266,-23011.64099866,0.000313,2]
[341519881,1730949229561,19588.92762386,0.0003012,2]
[341519882,1730949238687,163.0,9e-05,2]
[341519884,1730949247025,525.6,0.00029133,2]
[341519886,1730949261218,250.0,0.00021,2]
[341519887,1730949262353,300.0,0.00023,2]
[341519888,1730949263430,350.0,0.00025,2]
[341519889,1730949264808,400.0,0.00027,2]
[341519890,1730949265598,450.0,0.00029,2]
[341519892,1730949283226,729.46,0.00030894,2]
[341519894,1730949298802,174.0,9e-05,2]
[341519896,1730949319187,427.06,0.00029133,120]
[341519900,1730949359584,160.0,9e-05,2]
[341519901,1730949361633,215.0,0.0003,2]
[341519902,1730949369170,375.26,0.00030793,2]
[341519903,1730949370993,335.42,0.00030793,2]
[341519905,1730949399886,200.0,0.0003081,7]
[341519906,1730949419251,171.0,9e-05,2]
[341519907,1730949456607,192.13,0.00024614,2]
[341519908,1730949457646,571.02711414,0.00028822,2]
[341519909,1730949457671,298.09288586,0.00028822,2]
[341519912,1730949550177,206.99,0.00029163,2]
[341519913,1730949572671,157.02,0.00015342,2]
[341519914,1730949704650,-15245.22656639,0.00030445,2]
[341519915,1730949704671,-251.2,0.00030511,2]
[341519916,1730949704690,-162.05,0.00030545,2]
[341519917,1730949704710,-382.35,0.00030698,2]
[341519918,1730949704730,-546.27,0.00030698,2]
[341519919,1730949705004,-250.0,0.00030701,2]
[341519920,1730949705026,-154.78,0.00030708,120]
[341519921,1730949705046,-188.52,0.0003092,30]
[341519922,1730949705066,-869.12,0.00031086,2]
[341519923,1730949705085,-150.99,0.000311,2]
[341519924,1730949705104,-188.03,0.00031157,2]
[341519925,1730949705125,-3593.6545,0.000312,2]
[341519926,1730949705146,-327.65366602,0.0003129,2]
[341519927,1730949705166,-338.74,0.0003129,10]
[341519928,1730949705185,-1070.37044302,0.00031299,15]
[341519929,1730949705207,-4273.06774677,0.00031299,2]
[341519930,1730949705227,-2000.0,0.00031299,2]
[341519931,1730949705247,-47865.3270778,0.000313,2]
[341519932,1730949818642,333.0,0.0003,2]
[341519934,1730949908460,48080.01811414,0.00016,2]
[341519935,1730949908529,50000.0,0.00016,2]
[341519936,1730949908590,50000.0,0.00016,2]
[341519937,1730949908621,50000.0,0.00016,2]
[341519938,1730949908648,50000.0,0.00016,2]
[341519939,1730949908676,50000.0,0.00016,2]
[341519940,1730949908702,50000.0,0.00016,2]
[341519941,1730949908728,50000.0,0.00016,2]
[341519942,1730949908755,50000.0,0.00016,2]
[341519943,1730949908782,50000.0,0.00016,2]
[341519944,1730949908809,50000.0,0.00016,2]
[341519945,1730949908834,50000.0,0.00016,2]
[341519946,1730949908860,49825.0,0.00016,2]
[341519947,1730949908885,50000.0,0.00016,2]
[341519948,1730949908911,50000.0,0.00016,2]
[341519949,1730949908937,50000.0,0.00016,2]
[341519950,1730949908963,50000.0,0.00016,2]
[341519951,1730949908987,50000.0,0.00016,2]
[341519952,1730949909014,1538634.49851112,0.00016,2]
[341519953,1730949909041,5534035.22842696,0.00016,2]
[341519954,1730949934211,300.32568384,0.0002,2]
[341519955,1730949953325,-919.21,0.00030103,2]
[341519956,1730949953347,-919.21,0.00030587,2]
[341519957,1730949953369,-200.0,0.00030707,7]
[341519958,1730949953392,-362.35,0.0003071,120]
[341519959,1730949953413,-311.0,0.0003107,2]
[341519960,1730949953432,-311.0,0.0003107,2]
[341519961,1730949953453,-919.21,0.0003107,2]
[341519962,1730949953476,-1278.21077758,0.000312,15]
[341519963,1730950035129,-12128.05422805,0.00022,2]
[341519964,1730950036091,-216.27506783,0.00022,2]
[341519965,1730950050246,-919.25999352,0.00022,2]
[341519967,1730950105947,7502.38964167,0.0002,2]
[341519976,1730950122019,157.26,0.00015342,2]
[341519982,1730950148087,-1692.0250906,0.00022,2]
[341519983,1730950152075,-782.2,0.00028831,2]
[341519984,1730950152094,-155.6205,0.0003,2]
[341519985,1730950152114,-206.2695,0.0003,2]
[341519986,1730950152134,-9640.44242157,0.0003,14]
[341519987,1730950152154,-2025.29061843,0.0003,15]
[341519991,1730950231805,-574.5,0.00029701,2]
[341519993,1730950231814,-1000.0,0.00029999,2]
[341519995,1730950231823,-102.9496528,0.0003,15]
[341519999,1730950231835,-3168.51029453,0.0003,15]
[341520004,1730950231847,-2375.06060902,0.0003,15]
[341520028,1730950231969,-7523.26056175,0.0003,15]
[341520030,1730950231978,-4765.27991155,0.0003,2]
[341520032,1730950231989,-2099.23912265,0.0003,2]
[341520040,1730950232666,-3681.7038898,0.0003,2]
[341520041,1730950232675,-5570.50296867,0.0003,2]
[341520042,1730950232684,-3107.08345256,0.0003,120]
[341520043,1730950232693,-172.199,0.0003,2]
[341520044,1730950232702,-172.199,0.0003,2]
[341520045,1730950232711,-574.5,0.00030178,2]
[341520046,1730950232720,-250.0,0.00030428,2]
[341520047,1730950232729,-799.04,0.00030457,2]
[341520048,1730950232738,-179.09,0.00030647,30]
[341520049,1730950232748,-574.5,0.00030655,2]
[341520050,1730950232757,-191.17,0.00030712,2]
[341520051,1730950232765,-12959.39,0.00031,2]
[341520052,1730950232775,-1293.06,0.00031095,2]
[341520053,1730950232784,-782.2,0.00031095,2]
[341520054,1730950232793,-574.5,0.00031133,2]
[341520055,1730950232802,-155.0,0.000312,15]
[341520056,1730950232811,-951.33,0.000312,2]
[341520057,1730950232820,-4454.4499,0.000312,2]
[341520058,1730950232829,-188.5809,0.000312,7]
[341520059,1730950232838,-2504.04537259,0.000312,2]
[341520063,1730950238005,-343.33617133,0.000311,5]
[341520064,1730950238020,-162.66382867,0.000311,5]
[341520065,1730950238031,-997.34462741,0.000312,2]
[341520066,1730950238040,-13621.42,0.000312,2]
[341520067,1730950238051,-999.99,0.000312,2]
[341520068,1730950238060,-255.0,0.0003129,10]
[341520069,1730950238069,-350.03,0.0003129,10]
[341520070,1730950238079,-500.0,0.00031299,2]
[341520071,1730950238089,-407.34003546,0.00031299,2]
[341520072,1730950238098,-28443.44161846,0.000313,2]
[341520073,1730950238109,-684.47396826,0.000313,2]
[341520074,1730950238120,-34027.19999997,0.000313,2]
[341520075,1730950238131,-3079.10090611,0.000313,2]
[341520076,1730950238343,-311.91709135,0.000313,2]
[341520077,1730950238355,-5742.71297375,0.000313,2]
[341520078,1730950238500,-16723.07097013,0.000313,2]
[341520080,1730950238511,-681.19364464,0.000313,2]
[341520081,1730950238523,-3010.001,0.000313,2]
[341520180,1730950239805,-2043.6,0.000313,2]
[341520183,1730950239978,-1334.59358422,0.000313,2]
[341520184,1730950240127,-5551.08387634,0.000313,2]
[341520185,1730950240139,-251.42781811,0.000313,2]
[341520186,1730950240151,-3399.7,0.000313,2]
[341520193,1730950241229,150.0,0.0002,2]
[341520200,1730950244047,-2230.15913504,0.000313,2]
[341520207,1730950244371,-24.4367528,0.000313,2]
[341520208,1730950244400,-847.58446831,0.000313,2]
[341520209,1730950244425,-19.48255147,0.000313,2]
[341520210,1730950244436,-10720.073301,0.000313,2]
[341520211,1730950244566,-430.02119759,0.000313,2]
[341520212,1730950244611,-47664.08076599,0.000313,2]
[341520213,1730950244621,-75903.19564015,0.000313,2]
[341520214,1730950244632,-1364.95915985,0.000313,2]
[341520215,1730950244642,-219.36079915,0.000313,15]
[341520216,1730950244651,-338.0,0.000313,2]
[341520217,1730950244660,-344.0,0.00031389,2]
[341520218,1730950244670,-1237.14533594,0.0003139,2]
[341520238,1730950246011,-24330.57467753,0.0003139,2]
[341520241,1730950246025,-4574.11096134,0.0003139,2]
[341520243,1730950246038,-612.5,0.0003139,2]
[341520249,1730950246298,-102.13999931,0.0003139,2]
[341520250,1730950246310,-3776.3417,0.0003139,2]
[341520251,1730950246322,-1962.0001,0.0003139,2]
[341520252,1730950246334,-3648.51861574,0.0003139,2]
[341520253,1730950246346,-8361.092679,0.0003139,2]
[341520254,1730950246382,-393.81396484,0.0003139,2]
[341520255,1730950246454,-467.53788425,0.0003139,2]
[341520256,1730950246506,-4454.44991329,0.0003139,2]
[341520257,1730950246518,-428.5387134,0.0003139,2]
[341520258,1730950246529,-11505.69237013,0.0003139,2]
[341520259,1730950246651,-35945.4821218,0.0003139,2]
[341520260,1730950246662,-2046.0,0.0003139,2]
[341520261,1730950246674,-643.00000001,0.0003139,2]
[341520986,1730950628926,3000.0,0.0002401,30]
[341520990,1730950881869,100000.0,0.0002401,30]
[341520991,1730951131925,-250.0,0.00021,2]
[341520992,1730951131949,-300.0,0.00023,2]
[341520993,1730951162451,164.65,0.00015342,2]
[341520995,1730951164705,-291.69,0.00025,30]
[341520996,1730951165831,-150.24865567,0.00024843,2]
[341520997,1730951167386,-439.31,0.00025,30]
[341520998,1730951242165,-1097.59220263,0.00024967,2]
[341520999,1730951242185,-28320.63172262,0.00025,30]
[341521000,1730951246138,-6154.99741487,0.00025,30]
[341521001,1730951346102,-2941.807414,0.00025,30]
[341521002,1730951347394,-11851.56344851,0.00025,30]
[341521003,1730951347416,-350.0,0.00025,2]
[341521004,1730951347436,-900.0,0.000253,2]
[341521005,1730951347456,-400.0,0.00027,2]
[341521006,1730951347477,-786.21,0.00028253,2]
[341521011,1730951432327,-287.25,0.00029445,2]
[341521012,1730951432337,-152.0,0.00029861,3]
[341521013,1730951432346,-236.40734826,0.00029918,2]
[341521014,1730951432361,-50.84265174,0.00029918,2]
[341521015,1730951432370,-172.11109977,0.0003,4]
[341521016,1730951432379,-154.1521245,0.0003,2]
[341521017,1730951432389,-55.81412399,0.0003,2]
[341521018,1730951432401,-754.06037601,0.0003,2]
[341521019,1730951432410,-80.00773904,0.0003,2]
[341521022,1730951438258,-729.86676096,0.0003,2]
[341521023,1730951438267,-2538.82478538,0.0003,2]
[341521024,1730951438278,-54585.14336345,0.0003,2]
[341521025,1730951438288,-639.24,0.00030084,2]
[341521026,1730951438298,-250.0,0.00030117,2]
[341521027,1730951438307,-191.17,0.0003016,2]
[341521028,1730951438317,-200.0,0.00030249,7]
[341521029,1730951438326,-341.65,0.000303,120]
[341521030,1730951438335,-170.13,0.00030344,30]
[341521031,1730951438345,-287.25,0.00030391,2]
[341521032,1730951438358,-786.21,0.00030517,2]
[341521033,1730951438367,-360.76,0.00030526,2]
[341521034,1730951438376,-188.59,0.00030628,120]
[341521035,1730951438386,-152.0,0.00030676,4]
[341521036,1730951438395,-300.2,0.00030793,2]
[341521037,1730951438404,-168.47,0.00030825,120]
[341521038,1730951438414,-287.25,0.00030864,2]
[341521039,1730951438423,-397.677569,0.00031055,2]
[341521040,1730951438432,-611.15,0.00031233,2]
[341521041,1730951438442,-162.3,0.00031233,2]
[341521042,1730951438452,-287.25,0.00031337,2]
[341521043,1730951438463,-2000.0,0.0003139,2]
[341521044,1730951438472,-200.0,0.0003139,2]
[341521045,1730951438482,-200.0,0.0003139,2]
[341521046,1730951438491,-782.30061,0.0003139,2]
[341521047,1730951438501,-166.67,0.00031427,2]
[341521048,1730951438511,-527.9691,0.0003143,2]
[341521049,1730951438520,-152.0,0.00031491,5]
[341521050,1730951438529,-1000.0,0.000315,2]
[341521051,1730951438539,-1000.0,0.000315,2]
[341521052,1730951438548,-1000.0,0.000315,2]
[341521053,1730951438558,-1000.0,0.000315,2]
[341521054,1730951438567,-1000.0,0.000315,2]
[341521055,1730951438577,-2296.46528944,0.0003152,2]
[341521056,1730951438586,-291.69,0.0003152,10]
[341521057,1730951438595,-243.08,0.0003152,10]
[341521058,1730951438605,-202.56,0.0003152,10]
[341521059,1730951438615,-283.0365,0.00031526,2]
[341521060,1730951438624,-345.04836435,0.00031529,2]
[341521061,1730951438633,-5580.91464728,0.0003153,7]
[341521062,1730951438682,-683.88860166,0.0003153,7]
[341521064,1730951440362,-1361.491353,0.0003153,7]
[341521065,1730951440706,-433.46889708,0.0003153,7]
[341521075,1730951445124,-8493.06496824,0.0003153,7]
[341521076,1730951445136,-21905.12543883,0.0003153,7]
[341521077,1730951445146,-1000.0,0.000316,2]
[341521078,1730951445155,-1000.0,0.000316,2]
[341521079,1730951445164,-1000.0,0.000316,2]
[341521080,1730951445173,-1007.0,0.000316,2]
[341521081,1730951445182,-1012.0,0.000316,2]
[341521082,1730951445191,-1000.0,0.000316,2]
[341521083,1730951445200,-1000.0,0.000316,2]
[341521084,1730951445209,-1000.0,0.000316,2]
[341521085,1730951445218,-1006.0,0.000316,2]
[341521086,1730951445229,-1013.0,0.000316,2]
[341521087,1730951445237,-2000.0,0.00031704,2]
[341521088,1730951445247,-200.0,0.00031704,2]
[341521090,1730951445256,-200.0,0.00031704,2]
[341521091,1730951445265,-1500.0,0.00031712,2]
[341521092,1730951445274,-435.36972873,0.00031734,2]
[341521093,1730951445284,-349.08590504,0.00031759,2]
[341521094,1730951445295,-1500.0,0.00031764,2]
[341521095,1730951445304,-300.0,0.00031777,2]
[341521096,1730951445314,-5556.67410599,0.00031799,15]
[341521097,1730951445323,-155.6205,0.000318,2]
[341521098,1730951445333,-287.25,0.0003181,2]
[341521099,1730951445342,-166.626,0.00031878,30]
[341521100,1730951445355,-13308.90596354,0.00031899,2]
[341521101,1730951445368,-1231.80402244,0.00031899,2]
[341521102,1730951445381,-9982.36051761,0.00031899,2]
[341521105,1730951446103,-500.0,0.00031529,2]
[341521107,1730951446114,-196.27804087,0.00031529,2]
[341521108,1730951446124,-2584.72776047,0.00031899,2]
[341521109,1730951446134,-230.23776648,0.00031899,2]
[341521111,1730951446144,-500.0,0.00031899,2]
[341521113,1730951446154,-34929.51478083,0.000319,2]
[341521114,1730951446345,-4247.23899792,0.000319,2]
[341521115,1730951446360,-4454.44991329,0.000319,2]
[341521286,1730951994999,165.06,0.00015342,2]
[341521288,1730952385229,14921.23,0.0001892,2]
[341521289,1730952430718,-496.0,0.00027956,2]
[341521290,1730952430749,-805.38,0.00028343,2]
[341521291,1730952430774,-325.9,0.00029518,2]
[341521292,1730952430805,-325.9,0.00029992,2]
[341521293,1730952430830,-8650.0,0.0003,10]
[341521294,1730952430856,-331.94675,0.0003,2]
[341521295,1730952430882,-331.94675,0.0003,2]
[341521296,1730952430907,-174.65,0.00030137,2]
[341521297,1730952430933,-250.0,0.00030197,2]
[341521298,1730952430959,-236.8,0.00030214,120]
[341521299,1730952430985,-160.177,0.0003024,2]
[341521300,1730952431013,-190.53,0.00030418,30]
[341521301,1730952431038,-325.9,0.00030466,2]
[341521302,1730952431063,-246.12,0.00030601,2]
[341521303,1730952431088,-805.38,0.00030607,2]
[341521304,1730952431113,-246.12,0.00030617,2]
[341521305,1730952431136,-246.12,0.00030633,2]
[341521306,1730952431155,-246.12,0.00030649,2]
[341521307,1730952431175,-246.12,0.00030665,2]
[341521308,1730952431195,-246.12,0.00030681,2]
[341521309,1730952431214,-246.12,0.00030698,2]
[341521310,1730952431234,-246.12,0.00030714,2]
[341521311,1730952431255,-246.12,0.0003073,2]
[341521312,1730952431274,-246.12,0.00030746,2]
[341521313,1730952431295,-246.12,0.00030762,2]
[341521314,1730952431828,-246.12,0.00030778,2]
[341521315,1730952431851,-246.12,0.00030794,2]
[341521316,1730952431871,-246.12,0.0003081,2]
[341521317,1730952431890,-488.6,0.00030816,2]
[341521318,1730952431910,-246.12,0.00030826,2]
[341521319,1730952431929,-246.12,0.00030843,2]
[341521320,1730952431948,-277.96,0.00030845,2]
[341521321,1730952431968,-246.12,0.00030859,2]
[341521322,1730952431988,-246.12,0.00030875,2]
[341521323,1730952432010,-246.12,0.00030891,2]
[341521324,1730952432034,-246.12,0.00030907,2]
[341521325,1730952432054,-325.9,0.00030941,2]
[341521326,1730952432076,-3899.18465234,0.00030953,2]
[341521333,1730952632144,-162.95,0.00030126,2]
[341521334,1730952632154,-162.95,0.0003061,2]
[341521335,1730952632163,-1000.0,0.000308,2]
[341521336,1730952632174,-2137.50778685,0.00031,3]
[341521337,1730952632312,-159.49221315,0.00031,3]
[341521338,1730952632322,-162.95,0.00031094,2]
[341521339,1730952632331,-289.88,0.00031186,120]
[341521340,1730952632341,-972.07565374,0.00031233,2]
[341521341,1730952632350,-361.8,0.00031233,2]
[341521342,1730952632359,-150.0,0.00031233,2]
[341521343,1730952632369,-965.29,0.00031233,2]
[341521344,1730952632378,-150.57,0.00031233,2]
[341521345,1730952632387,-3376.0,0.00031265,2]
[341521346,1730952632397,-341.35030639,0.00031514,2]
[341521347,1730952632407,-162.95,0.00031578,2]
[341521348,1730952632416,-725.68416,0.0003158,2]
[341521349,1730952632426,-11232.50218397,0.0003159,2]
[341521350,1730952632435,-157.110712,0.00031698,3]
[341521351,1730952632445,-150.110712,0.00031698,2]
[341521352,1730952632454,-6626.87916895,0.00031704,15]
[341521353,1730952632464,-166.22,0.00031727,2]
[341521354,1730952632474,-150.0,0.00031731,2]
[341521356,1730952632483,-1500.0,0.00031741,2]
[341521358,1730952632493,-150.0,0.00031763,2]
[341521359,1730952632502,-150.0,0.00031787,2]
[341521360,1730952632512,-150.0,0.00031794,2]
[341521361,1730952632521,-150.110712,0.00031798,2]
[341521362,1730952632531,-150.110712,0.00031798,3]
[341521364,1730952632541,-771.59316855,0.00031799,2]
[341521366,1730952632550,-1000.0,0.00031799,2]
[341521368,1730952632560,-8604.3149,0.000318,2]
[341521370,1730952632569,-12362.78677892,0.000318,2]
[341521375,1730952632606,-663.698535,0.000318,2]
[341521377,1730952632617,-2966.48754,0.000318,2]
[341521379,1730952632656,-939.09124655,0.000318,2]
[341521380,1730952632669,-829.21953106,0.000318,2]
[341521381,1730952632680,-2194.55656055,0.000318,2]
[341521391,1730952638118,-223.16,0.0003179,10]
[341521392,1730952638128,-14778.64,0.000318,2]
[341521394,1730952638175,-1277.00386117,0.000318,2]
[341521395,1730952638187,-64479.50814675,0.000318,2]
[341521396,1730952638197,-158.85591264,0.000318,2]
[341521397,1730952638207,-328.09670179,0.000318,2]
[341521398,1730952638217,-173.36827137,0.00031804,3]
[341521399,1730952638227,-150.0,0.00031811,2]
[341521400,1730952638237,-150.0,0.00031815,2]
[341521401,1730952638246,-166.626,0.00031844,30]
[341521402,1730952638255,-150.0,0.00031871,2]
[341521403,1730952638265,-501.73073289,0.00031873,5]
[341521404,1730952638275,-150.0,0.00031889,2]
[341521405,1730952638285,-150.0,0.00031896,2]
[341521406,1730952638294,-500.0,0.00031898,2]
[341521407,1730952638303,-500.0,0.00031898,2]
[341521408,1730952638313,-266.20952545,0.00031898,2]
[341521409,1730952638322,-7500.0,0.00031899,2]
[341521410,1730952638333,-28513.8098,0.00031899,2]
[341521411,1730952638342,-203.0822348,0.00031899,2]
[341521412,1730952638351,-69774.78186536,0.00031899,3]
[341521413,1730952638364,-14277.35684102,0.00031899,3]
[341521414,1730952638375,-1473.00163474,0.00031899,3]
[341521415,1730952638401,-322.91051475,0.00031899,3]
[341521416,1730952638412,-279.36,0.00031899,3]
[341521417,1730952638425,-4529.9985,0.00031899,3]
[341521418,1730952638436,-10586.10900898,0.00031899,3]
[341521419,1730952638458,-4914.40054338,0.00031899,3]
[341521420,1730952638469,-419.16373027,0.00031899,3]
[341521421,1730952638480,-2858.9,0.00031899,3]
[341521422,1730952638491,-25972.30428063,0.00031899,3]
[341521423,1730952638570,-562.25,0.00031899,3]
[341521424,1730952638703,-3247.11380441,0.00031899,3]
[341521430,1730952640064,-559.38,0.00031899,3]
[341521431,1730952640120,-263.4485,0.00031899,3]
[341521432,1730952640131,-577.29297945,0.00031899,3]
[341521433,1730952640229,-1000.0,0.00031899,3]
[341521434,1730952640244,-2745.26186992,0.00031899,3]
[341521435,1730952640288,-344.57162424,0.00031899,3]
[341521436,1730952640360,-1405.28875568,0.00031899,3]
[341521497,1730952643661,-4.41435915,0.00031899,3]
[341521498,1730952643697,-18726.1027769,0.00031899,3]
[341521499,1730952643742,-121.2260811,0.00031899,3]
[341521524,1730952644016,-228904.8688492,0.00031899,3]
[341521531,1730952646035,-1323.4,0.00031899,3]
[341521532,1730952646052,-8339.62306735,0.00031899,3]
[341521533,1730952646339,-1338.85820441,0.00031899,3]
[341521534,1730952646349,-3423.18241397,0.00031899,3]
[341521535,1730952646360,-93.41390052,0.000319,2]
[341521536,1730952646373,-76.89704104,0.000319,2]
[341521537,1730952646383,-4377.55287225,0.000319,2]